[Event "NJSK 2023 Meisjes B"]
[Site "Almelo, Netherlands"]
[Date "2023.05.06"]
[Round "7.2"]
[White "Damen, Josephine"]
[Black "Tangarife Ramirez, Katja"]
[Result "1-0"]
[TimeControl "90min/40moves + 30min + 30sec/move"]
[WhiteElo "1628"]
[BlackElo "1667"]

1. e4 {[%clk 01:30:58]} {[%emt 00:00:02]} c6 {[%clk 01:30:56]} {[%emt
00:00:04]} 2. d4 {[%clk 01:31:22]} {[%emt 00:00:06]} d5 {[%clk 01:31:23]}
{[%emt 00:00:03]} 3. exd5 {[%clk 01:31:46]} {[%emt 00:00:05]} cxd5 {[%clk
01:31:50]} {[%emt 00:00:04]} 4. c4 {[%clk 01:32:00]} {[%emt 00:00:15]} Nf6
{[%clk 01:32:11]} {[%emt 00:00:09]} 5. Nc3 {[%clk 01:31:32]} {[%emt 00:00:58]}
Nc6 {[%clk 01:32:32]} {[%emt 00:00:09]} 6. Nf3 {[%clk 01:31:08]} {[%emt
00:00:54]} Bg4 {[%clk 01:32:43]} {[%emt 00:00:20]} 7. Be3 {[%clk 01:31:08]}
{[%emt 00:00:29]} e6 {[%clk 01:23:52]} {[%emt 00:09:21]} 8. c5 {[%clk
01:30:45]} {[%emt 00:00:53]} a6 {[%clk 01:11:45]} {[%emt 00:12:38]} 9. h3
{[%clk 01:10:04]} {[%emt 00:21:10]} Bxf3 {[%clk 01:11:19]} {[%emt 00:00:56]} 10.
gxf3 {[%clk 01:10:09]} {[%emt 00:00:25]} Bxc5 {[%clk 00:58:45]} {[%emt
00:13:05]} 11. dxc5 {[%clk 01:07:14]} {[%emt 00:03:26]} d4 {[%clk 00:58:58]}
{[%emt 00:00:16]} 12. Bd2 {[%clk 01:02:07]} {[%emt 00:05:37]} dxc3 {[%clk
00:58:35]} {[%emt 00:00:53]} 13. Bxc3 {[%clk 01:02:28]} {[%emt 00:00:08]} Qe7
{[%clk 00:57:25]} {[%emt 00:01:40]} 14. Rg1 {[%clk 00:51:28]} {[%emt 00:11:30]}
Rg8 {[%clk 00:50:30]} {[%emt 00:07:26]} 15. Qd2 {[%clk 00:43:52]} {[%emt
00:08:06]} e5 {[%clk 00:45:47]} {[%emt 00:05:12]} 16. Qd6 {[%clk 00:35:46]}
{[%emt 00:08:36]} Rd8 {[%clk 00:40:46]} {[%emt 00:05:30]} 17. Qxe7+ {[%clk
00:35:40]} {[%emt 00:00:37]} Kxe7 {[%clk 00:41:01]} {[%emt 00:00:16]} 18. Bc4
{[%clk 00:28:23]} {[%emt 00:07:47]} Nd4 {[%clk 00:34:32]} {[%emt 00:06:59]} 19.
O-O-O {[%clk 00:24:44]} {[%emt 00:04:09]} Nxf3 {[%clk 00:31:31]} {[%emt
00:03:31]} 20. Rxd8 {[%clk 00:20:35]} {[%emt 00:04:40]} Kxd8 {[%clk 00:31:09]}
{[%emt 00:00:52]} 21. Rg3 {[%clk 00:17:40]} {[%emt 00:03:25]} Nd4 {[%clk
00:29:42]} {[%emt 00:01:57]} 22. Bxd4 {[%clk 00:13:51]} {[%emt 00:04:19]} exd4
{[%clk 00:30:03]} {[%emt 00:00:09]} 23. Bxf7 {[%clk 00:13:47]} {[%emt
00:00:34]} Rf8 {[%clk 00:29:31]} {[%emt 00:01:01]} 24. Rxg7 {[%clk 00:12:21]}
{[%emt 00:01:56]} Ne4 {[%clk 00:28:37]} {[%emt 00:01:24]} 25. Rg8 {[%clk
00:10:30]} {[%emt 00:02:21]} Rxg8 {[%clk 00:28:03]} {[%emt 00:01:04]} 26. Bxg8
{[%clk 00:10:56]} {[%emt 00:00:05]} Nxf2 {[%clk 00:27:36]} {[%emt 00:00:57]} 27.
h4 {[%clk 00:10:13]} {[%emt 00:01:13]} h5 {[%clk 00:24:30]} {[%emt 00:03:36]}
28. Kc2 {[%clk 00:08:20]} {[%emt 00:02:22]} Ke7 {[%clk 00:22:37]} {[%emt
00:02:24]} 29. Bd5 {[%clk 00:07:40]} {[%emt 00:01:10]} d3+ {[%clk 00:19:37]}
{[%emt 00:03:30]} 30. Kd2 {[%clk 00:07:43]} {[%emt 00:00:26]} b5 {[%clk
00:18:51]} {[%emt 00:01:17]} 31. cxb6 {[%clk 00:07:51]} {[%emt 00:00:23]} Kd6
{[%clk 00:19:12]} {[%emt 00:00:09]} 32. Bf3 {[%clk 00:07:21]} {[%emt 00:00:59]}
Nh3 {[%clk 00:18:37]} {[%emt 00:01:06]} 33. Kxd3 {[%clk 00:06:48]} {[%emt
00:01:03]} Nf4+ {[%clk 00:18:57]} {[%emt 00:00:10]} 34. Ke3 {[%clk 00:06:51]}
{[%emt 00:00:26]} Ng6 {[%clk 00:19:04]} {[%emt 00:00:24]} 35. b7 {[%clk
00:05:20]} {[%emt 00:02:01]} Kc7 {[%clk 00:19:24]} {[%emt 00:00:10]} 36. Be4
{[%clk 00:05:00]} {[%emt 00:00:50]} Ne5 {[%clk 00:18:02]} {[%emt 00:01:52]} 37.
Kf4 {[%clk 00:04:45]} {[%emt 00:00:45]} Nc4 {[%clk 00:17:49]} {[%emt 00:00:43]}
38. b3 {[%clk 00:04:12]} {[%emt 00:01:03]} Nd6 {[%clk 00:17:23]} {[%emt
00:00:56]} 39. Bf3 {[%clk 00:04:11]} {[%emt 00:00:30]} 1-0

[Event "NJSK 2023 Meisjes B"]
[Site "Almelo, Netherlands"]
[Date "2023.05.06"]
[Round "7.3"]
[White "Verheij, Dana"]
[Black "Oostinga, Elisa"]
[Result "1/2-1/2"]
[TimeControl "90min/40moves + 30min + 30sec/move"]
[WhiteElo "1846"]
[BlackElo "1034"]

1. e4 {[%clk 01:30:57]} {[%emt 00:00:03]} c6 {[%clk 01:30:54]} {[%emt
00:00:06]} 2. d4 {[%clk 01:31:24]} {[%emt 00:00:03]} d5 {[%clk 01:31:21]}
{[%emt 00:00:03]} 3. exd5 {[%clk 01:31:50]} {[%emt 00:00:04]} cxd5 {[%clk
01:31:45]} {[%emt 00:00:06]} 4. Nf3 {[%clk 01:32:15]} {[%emt 00:00:05]} Nc6
{[%clk 01:31:38]} {[%emt 00:00:37]} 5. Ne5 {[%clk 01:32:04]} {[%emt 00:00:42]}
a6 {[%clk 01:31:34]} {[%emt 00:00:35]} 6. c3 {[%clk 01:31:44]} {[%emt
00:00:49]} Bf5 {[%clk 01:30:54]} {[%emt 00:01:09]} 7. Be3 {[%clk 01:30:25]}
{[%emt 00:01:49]} e6 {[%clk 01:29:28]} {[%emt 00:01:56]} 8. Nd2 {[%clk
01:27:37]} {[%emt 00:03:18]} Nxe5 {[%clk 01:23:26]} {[%emt 00:06:33]} 9. dxe5
{[%clk 01:28:02]} {[%emt 00:00:05]} Qc7 {[%clk 01:23:23]} {[%emt 00:00:33]} 10.
f4 {[%clk 01:25:25]} {[%emt 00:03:07]} Bc5 {[%clk 01:21:06]} {[%emt 00:02:47]}
11. Qa4+ {[%clk 01:18:42]} {[%emt 00:07:14]} Kf8 {[%clk 01:17:09]} {[%emt
00:04:26]} 12. Bd4 {[%clk 01:13:15]} {[%emt 00:05:57]} Ne7 {[%clk 01:10:52]}
{[%emt 00:06:48]} 13. Be2 {[%clk 01:03:33]} {[%emt 00:10:11]} Rc8 {[%clk
00:58:59]} {[%emt 00:12:23]} 14. O-O {[%clk 00:53:15]} {[%emt 00:10:48]} Qb6
{[%clk 00:46:57]} {[%emt 00:12:33]} 15. Nb3 {[%clk 00:40:29]} {[%emt 00:13:15]}
Bc2 {[%clk 00:38:45]} {[%emt 00:08:42]} 16. Nxc5 {[%clk 00:31:57]} {[%emt
00:09:03]} Bxa4 {[%clk 00:37:34]} {[%emt 00:01:40]} 17. Nd7+ {[%clk 00:32:24]}
{[%emt 00:00:03]} Bxd7 {[%clk 00:37:34]} {[%emt 00:00:30]} 18. Bxb6 {[%clk
00:32:53]} {[%emt 00:00:02]} h5 {[%clk 00:33:19]} {[%emt 00:04:44]} 19. a4
{[%clk 00:27:17]} {[%emt 00:06:06]} f6 {[%clk 00:28:22]} {[%emt 00:05:28]} 20.
exf6 {[%clk 00:19:05]} {[%emt 00:08:42]} gxf6 {[%clk 00:28:33]} {[%emt
00:00:19]} 21. Bd4 {[%clk 00:19:23]} {[%emt 00:00:12]} Kf7 {[%clk 00:27:59]}
{[%emt 00:01:03]} 22. Rf3 {[%clk 00:16:47]} {[%emt 00:03:06]} Nf5 {[%clk
00:23:53]} {[%emt 00:04:37]} 23. Bf2 {[%clk 00:09:25]} {[%emt 00:07:50]} Rcg8
{[%clk 00:16:18]} {[%emt 00:08:07]} 24. Bd3 {[%clk 00:05:41]} {[%emt 00:04:14]}
Bc6 {[%clk 00:10:23]} {[%emt 00:06:25]} 25. Bxf5 {[%clk 00:04:36]} {[%emt
00:01:34]} exf5 {[%clk 00:10:44]} {[%emt 00:00:10]} 26. Bd4 {[%clk 00:04:25]}
{[%emt 00:00:41]} Re8 {[%clk 00:10:27]} {[%emt 00:00:46]} 27. Kf2 {[%clk
00:03:55]} {[%emt 00:01:00]} Re4 {[%clk 00:10:09]} {[%emt 00:00:48]} 28. g3
{[%clk 00:03:22]} {[%emt 00:01:03]} h4 {[%clk 00:09:02]} {[%emt 00:01:37]} 29.
Kg2 {[%clk 00:02:18]} {[%emt 00:01:33]} hxg3 {[%clk 00:06:12]} {[%emt
00:03:21]} 30. hxg3 {[%clk 00:02:33]} {[%emt 00:00:15]} Re2+ {[%clk 00:05:34]}
{[%emt 00:01:08]} 31. Rf2 {[%clk 00:02:04]} {[%emt 00:01:00]} Rxf2+ {[%clk
00:05:16]} {[%emt 00:00:48]} 32. Kxf2 {[%clk 00:02:30]} {[%emt 00:00:03]} Rh2+
{[%clk 00:05:33]} {[%emt 00:00:13]} 33. Kf3 {[%clk 00:02:40]} {[%emt 00:00:20]}
Rxb2 {[%clk 00:05:49]} {[%emt 00:00:15]} 34. Rh1 {[%clk 00:02:39]} {[%emt
00:00:27]} Kg7 {[%clk 00:03:42]} {[%emt 00:02:41]} 35. a5 {[%clk 00:01:31]}
{[%emt 00:01:39]} Ra2 {[%clk 00:03:19]} {[%emt 00:00:53]} 36. Re1 {[%clk
00:01:45]} {[%emt 00:00:18]} Kf7 {[%clk 00:02:50]} {[%emt 00:00:56]} 37. Rh1
{[%clk 00:02:09]} {[%emt 00:00:05]} Rxa5 {[%clk 00:02:32]} {[%emt 00:00:48]} 38.
Rh6 {[%clk 00:02:18]} {[%emt 00:00:19]} Bd7 {[%clk 00:01:41]} {[%emt 00:01:23]}
39. Rxf6+ {[%clk 00:02:30]} {[%emt 00:00:19]} Ke7 {[%clk 00:01:56]} {[%emt
00:00:15]} 40. Rh6 {[%clk 00:02:24]} {[%emt 00:00:36]} Rb5 {[%clk 00:01:41]}
{[%emt 00:00:45]} 41. Rh8 {[%clk 00:26:50]} {[%emt 00:06:04]} a5 {[%clk
00:24:20]} {[%emt 00:07:52]} 42. Ra8 {[%clk 00:27:07]} {[%emt 00:00:13]} Kd6
{[%clk 00:23:13]} {[%emt 00:01:36]} 43. Ke3 {[%clk 00:26:56]} {[%emt 00:00:42]}
Kc6 {[%clk 00:21:16]} {[%emt 00:02:26]} 44. Be5 {[%clk 00:25:07]} {[%emt
00:02:20]} Rc5 {[%clk 00:15:54]} {[%emt 00:05:51]} 45. Bd4 {[%clk 00:23:40]}
{[%emt 00:01:58]} Rb5 {[%clk 00:15:46]} {[%emt 00:00:38]} 46. Kd3 {[%clk
00:20:02]} {[%emt 00:04:08]} Kd6 {[%clk 00:11:36]} {[%emt 00:04:40]} 47. Kc2
{[%clk 00:19:32]} {[%emt 00:01:00]} Kc6 {[%clk 00:11:24]} {[%emt 00:00:42]} 48.
Ra7 {[%clk 00:18:00]} {[%emt 00:02:02]} Kc7 {[%clk 00:10:59]} {[%emt 00:00:54]}
49. Be5+ {[%clk 00:16:29]} {[%emt 00:01:59]} Kc6 {[%clk 00:10:36]} {[%emt
00:00:56]} 50. Bf6 {[%clk 00:15:48]} {[%emt 00:01:10]} Rc5 {[%clk 00:10:08]}
{[%emt 00:00:58]} 51. Bd8 {[%clk 00:11:30]} {[%emt 00:04:49]} Rc4 {[%clk
00:07:12]} {[%emt 00:03:25]} 52. Bxa5 {[%clk 00:10:47]} {[%emt 00:01:13]} Ra4
{[%clk 00:07:04]} {[%emt 00:00:38]} 53. Kb3 {[%clk 00:09:54]} {[%emt 00:01:23]}
Re4 {[%clk 00:04:39]} {[%emt 00:02:54]} 54. Ra8 {[%clk 00:09:27]} {[%emt
00:00:58]} d4 {[%clk 00:04:14]} {[%emt 00:00:55]} 55. cxd4 {[%clk 00:08:59]}
{[%emt 00:00:58]} Rxd4 {[%clk 00:03:39]} {[%emt 00:01:05]} 56. Rh8 {[%clk
00:08:13]} {[%emt 00:01:16]} Rd3+ {[%clk 00:03:42]} {[%emt 00:00:28]} 57. Kc4
{[%clk 00:08:30]} {[%emt 00:00:14]} Rd6 {[%clk 00:03:20]} {[%emt 00:00:52]} 58.
Bc3 {[%clk 00:05:10]} {[%emt 00:03:50]} Rg6 {[%clk 00:02:45]} {[%emt 00:01:05]}
59. Be1 {[%clk 00:04:35]} {[%emt 00:01:06]} Re6 {[%clk 00:02:33]} {[%emt
00:00:41]} 60. Bf2 {[%clk 00:03:44]} {[%emt 00:01:21]} Re2 {[%clk 00:02:41]}
{[%emt 00:00:23]} 61. Bd4 {[%clk 00:03:51]} {[%emt 00:00:23]} Re4 {[%clk
00:02:49]} {[%emt 00:00:21]} 62. Kc3 {[%clk 00:03:49]} {[%emt 00:00:33]} Re6
{[%clk 00:02:57]} {[%emt 00:00:22]} 63. Rg8 {[%clk 00:03:52]} {[%emt 00:00:24]}
Rh6 {[%clk 00:02:46]} {[%emt 00:00:43]} 64. Rg7 {[%clk 00:03:10]} {[%emt
00:01:12]} Re6 {[%clk 00:01:51]} {[%emt 00:01:26]} 65. Rg5 {[%clk 00:02:32]}
{[%emt 00:01:08]} Rh6 {[%clk 00:01:50]} {[%emt 00:00:30]} 66. Rg7 {[%clk
00:02:42]} {[%emt 00:00:21]} Re6 {[%clk 00:02:05]} {[%emt 00:00:15]} 67. Be5
{[%clk 00:02:20]} {[%emt 00:00:51]} Rh6 {[%clk 00:01:54]} {[%emt 00:00:41]} 68.
Kb4 {[%clk 00:02:18]} {[%emt 00:00:33]} Re6 {[%clk 00:01:31]} {[%emt 00:00:53]}
69. Rf7 {[%clk 00:01:58]} {[%emt 00:00:49]} Rg6 {[%clk 00:01:41]} {[%emt
00:00:20]} 70. Rh7 {[%clk 00:01:27]} {[%emt 00:01:01]} Re6 {[%clk 00:01:24]}
{[%emt 00:00:48]} 71. Rg7 {[%clk 00:01:19]} {[%emt 00:00:37]} Kd5 {[%emt
00:00:09]} 1/2-1/2

[Event "NJSK 2023 Meisjes B"]
[Site "Almelo, Netherlands"]
[Date "2023.05.06"]
[Round "7.4"]
[White "De Bruijne, Marlies"]
[Black "Feng, Elysia"]
[Result "0-1"]
[TimeControl "90min/40moves + 30min + 30sec/move"]
[WhiteElo "945"]
[BlackElo "1697"]

1. d4 {[%clk 01:30:59]} d5 {[%clk 01:30:57]} {[%emt 00:00:04]} 2. c4 {[%clk
01:31:23]} {[%emt 00:00:06]} e6 {[%clk 01:31:24]} {[%emt 00:00:03]} 3. Nf3
{[%clk 01:31:33]} {[%emt 00:00:20]} c5 {[%clk 01:31:18]} {[%emt 00:00:36]} 4.
cxd5 {[%clk 01:28:41]} {[%emt 00:03:22]} exd5 {[%clk 01:31:21]} {[%emt
00:00:27]} 5. Nc3 {[%clk 01:24:30]} {[%emt 00:04:41]} Nc6 {[%clk 01:30:42]}
{[%emt 00:01:09]} 6. e3 {[%clk 01:21:56]} {[%emt 00:03:04]} Nf6 {[%clk
01:31:04]} {[%emt 00:00:08]} 7. Bb5 {[%clk 01:20:28]} {[%emt 00:01:58]} Bd6
{[%clk 01:29:53]} {[%emt 00:01:41]} 8. O-O {[%clk 01:19:20]} {[%emt 00:01:37]}
O-O {[%clk 01:30:14]} {[%emt 00:00:09]} 9. Re1 {[%clk 01:17:13]} {[%emt
00:02:37]} Bg4 {[%clk 01:29:33]} {[%emt 00:01:10]} 10. Bxc6 {[%clk 01:12:27]}
{[%emt 00:05:16]} bxc6 {[%clk 01:29:51]} {[%emt 00:00:13]} 11. e4 {[%clk
01:08:34]} {[%emt 00:04:23]} dxe4 {[%clk 01:26:47]} {[%emt 00:03:34]} 12. Nxe4
{[%clk 01:07:32]} {[%emt 00:01:32]} Bxf3 {[%clk 01:25:01]} {[%emt 00:02:17]} 13.
Qxf3 {[%clk 01:06:44]} {[%emt 00:01:18]} cxd4 {[%clk 01:25:18]} {[%emt
00:00:14]} 14. Bg5 {[%clk 01:02:04]} {[%emt 00:05:10]} Be7 {[%clk 01:23:08]}
{[%emt 00:02:39]} 15. Nxf6+ {[%clk 01:00:21]} {[%emt 00:02:13]} Bxf6 {[%clk
01:23:28]} {[%emt 00:00:11]} 16. Bxf6 {[%clk 00:57:08]} {[%emt 00:03:43]} Qxf6
{[%clk 01:23:28]} {[%emt 00:00:30]} 17. Qb3 {[%clk 00:55:15]} {[%emt 00:02:22]}
Rab8 {[%clk 01:22:26]} {[%emt 00:01:32]} 18. Qa3 {[%clk 00:53:22]} {[%emt
00:02:24]} Rb7 {[%clk 01:19:37]} {[%emt 00:03:20]} 19. Re2 {[%clk 00:46:15]}
{[%emt 00:07:36]} Rfb8 {[%clk 01:17:40]} {[%emt 00:02:28]} 20. Rae1 {[%clk
00:43:57]} {[%emt 00:02:47]} h6 {[%clk 01:16:26]} {[%emt 00:01:44]} 21. Qd3
{[%clk 00:38:53]} {[%emt 00:05:34]} g6 {[%clk 01:02:13]} {[%emt 00:14:43]} 22.
b3 {[%clk 00:36:19]} {[%emt 00:03:03]} Rd8 {[%clk 00:59:24]} {[%emt 00:03:19]}
23. h3 {[%clk 00:31:02]} {[%emt 00:05:48]} Rd6 {[%clk 00:54:51]} {[%emt
00:05:02]} 24. Rd2 {[%clk 00:26:28]} {[%emt 00:05:03]} c5 {[%clk 00:53:27]}
{[%emt 00:01:55]} 25. Rc1 {[%clk 00:23:23]} {[%emt 00:03:35]} Rd5 {[%clk
00:47:02]} {[%emt 00:06:55]} 26. Qe4 {[%clk 00:20:15]} {[%emt 00:03:37]} Qe6
{[%clk 00:44:27]} {[%emt 00:03:05]} 27. Qf3 {[%clk 00:17:24]} {[%emt 00:03:21]}
Re7 {[%clk 00:40:48]} {[%emt 00:04:11]} 28. Kh2 {[%clk 00:15:41]} {[%emt
00:02:13]} Rf5 {[%clk 00:37:48]} {[%emt 00:03:30]} 29. Qd3 {[%clk 00:11:15]}
{[%emt 00:04:56]} Rg5 {[%clk 00:35:05]} {[%emt 00:03:13]} 30. a3 {[%clk
00:08:45]} {[%emt 00:03:01]} Qd5 {[%clk 00:32:30]} {[%emt 00:03:04]} 31. g3
{[%clk 00:06:55]} {[%emt 00:02:20]} Rf5 {[%clk 00:15:29]} {[%emt 00:17:31]} 32.
b4 {[%clk 00:03:27]} {[%emt 00:03:58]} Rf3 {[%clk 00:14:01]} {[%emt 00:01:58]}
33. Qa6 {[%clk 00:02:19]} {[%emt 00:01:37]} Qf5 {[%clk 00:12:35]} {[%emt
00:01:56]} 34. Kg2 {[%clk 00:01:48]} {[%emt 00:01:02]} Qe4 {[%clk 00:06:07]}
{[%emt 00:06:58]} 35. Kh2 {[%clk 00:01:28]} {[%emt 00:00:49]} Qf5 {[%clk
00:05:09]} {[%emt 00:01:28]} 36. Kg2 {[%clk 00:01:38]} {[%emt 00:00:20]} cxb4
{[%clk 00:03:46]} {[%emt 00:01:54]} 37. axb4 {[%clk 00:02:00]} {[%emt
00:00:09]} Qd5 {[%clk 00:03:01]} {[%emt 00:01:13]} 38. Kh2 {[%clk 00:01:55]}
{[%emt 00:00:36]} Qg5 {[%clk 00:03:00]} {[%emt 00:00:30]} 39. Qc8+ {[%clk
00:01:34]} {[%emt 00:00:52]} Kg7 {[%emt 00:00:21]} 40. Rdc2 {[%clk 00:00:58]}
{[%emt 00:01:03]} d3 {[%clk 00:03:04]} {[%emt 00:00:38]} 41. Qc3+ {[%clk
00:30:08]} {[%emt 00:01:20]} Kh7 {[%clk 00:33:14]} {[%emt 00:00:19]} 42. Rd2
{[%clk 00:28:52]} {[%emt 00:01:47]} Ree3 {[%clk 00:29:14]} {[%emt 00:04:30]} 43.
Rg1 {[%clk 00:20:27]} {[%emt 00:08:55]} Re6 {[%clk 00:20:47]} {[%emt 00:08:57]}
44. Rxd3 {[%clk 00:15:24]} {[%emt 00:05:32]} Rxf2+ {[%clk 00:20:51]} {[%emt
00:00:26]} 45. Kh1 {[%clk 00:14:50]} {[%emt 00:01:04]} Ree2 {[%clk 00:20:39]}
{[%emt 00:00:43]} 46. Rg2 {[%clk 00:13:28]} {[%emt 00:01:52]} Rxg2 {[%clk
00:20:54]} {[%emt 00:00:15]} 47. Rf3 {[%clk 00:12:17]} {[%emt 00:01:41]} Qe7
{[%clk 00:20:24]} {[%emt 00:00:57]} 48. Qc5 {[%clk 00:10:16]} {[%emt 00:02:34]}
Rh2+ {[%clk 00:20:29]} {[%emt 00:00:25]} 49. Kg1 {[%clk 00:10:32]} {[%emt
00:00:14]} Reg2+ {[%clk 00:20:56]} {[%emt 00:00:04]} 50. Kf1 {[%clk 00:10:24]}
{[%emt 00:00:37]} Qe2# {[%clk 00:20:51]} {[%emt 00:00:04]} 0-1

[Event "NJSK 2023 Meisjes B"]
[Site "Almelo, Netherlands"]
[Date "2023.05.06"]
[Round "7.5"]
[White "Luijkx, Dagmar"]
[Black "Kulikova, Polina"]
[Result "1-0"]
[TimeControl "90min/40moves + 30min + 30sec/move"]
[WhiteElo "1559"]
[BlackElo "1589"]

1. e4 {[%emt 00:01:52]} c6 {[%emt 00:00:47]} 2. d4 {[%clk 01:30:54]} d5 {[%clk
01:28:50]} {[%emt 00:00:07]} 3. Nc3 {[%clk 01:31:20]} {[%emt 00:00:04]} dxe4
{[%clk 01:28:16]} {[%emt 00:01:03]} 4. Nxe4 {[%clk 01:31:47]} {[%emt 00:00:03]}
Nd7 {[%clk 01:28:33]} {[%emt 00:00:13]} 5. Nf3 {[%clk 01:31:12]} {[%emt
00:01:05]} Ngf6 {[%clk 01:28:52]} {[%emt 00:00:12]} 6. Ng3 {[%clk 01:30:47]}
{[%emt 00:00:54]} Nb6 {[%clk 01:28:50]} {[%emt 00:00:34]} 7. Bd3 {[%clk
01:28:23]} {[%emt 00:02:53]} Bg4 {[%clk 01:28:53]} {[%emt 00:00:26]} 8. Be3
{[%clk 01:26:57]} {[%emt 00:01:56]} e6 {[%clk 01:22:29]} {[%emt 00:06:55]} 9.
O-O {[%clk 01:23:11]} {[%emt 00:04:17]} Be7 {[%clk 01:20:30]} {[%emt 00:02:28]}
10. c4 {[%clk 01:20:36]} {[%emt 00:03:05]} Rc8 {[%clk 01:16:09]} {[%emt
00:04:50]} 11. Qb3 {[%clk 01:17:45]} {[%emt 00:03:22]} Bxf3 {[%clk 01:13:32]}
{[%emt 00:03:06]} 12. gxf3 {[%clk 01:18:14]} {[%emt 00:00:02]} Qd7 {[%clk
01:07:53]} {[%emt 00:06:09]} 13. a4 {[%clk 01:16:01]} {[%emt 00:02:43]} c5
{[%clk 00:49:15]} {[%emt 00:19:07]} 14. a5 {[%clk 01:07:33]} {[%emt 00:08:58]}
Na8 {[%clk 00:48:45]} {[%emt 00:01:01]} 15. dxc5 {[%clk 01:04:38]} {[%emt
00:03:24]} Bxc5 {[%clk 00:46:41]} {[%emt 00:02:33]} 16. Bg5 {[%clk 01:00:23]}
{[%emt 00:04:45]} h6 {[%clk 00:32:03]} {[%emt 00:15:08]} 17. Bf4 {[%clk
00:56:24]} {[%emt 00:04:29]} O-O {[%clk 00:30:34]} {[%emt 00:02:00]} 18. Ne4
{[%clk 00:51:58]} {[%emt 00:04:56]} Nxe4 {[%clk 00:27:12]} {[%emt 00:03:51]} 19.
Bxe4 {[%clk 00:49:55]} {[%emt 00:02:33]} b6 {[%clk 00:26:35]} {[%emt 00:01:08]}
20. Kh1 {[%clk 00:42:50]} {[%emt 00:07:34]} Nc7 {[%clk 00:21:46]} {[%emt
00:05:19]} 21. Bxh6 {[%clk 00:39:36]} {[%emt 00:03:44]} gxh6 {[%clk 00:18:28]}
{[%emt 00:03:48]} 22. Rg1+ {[%clk 00:39:23]} {[%emt 00:00:43]} Kh8 {[%clk
00:18:35]} {[%emt 00:00:23]} 23. Qc3+ {[%clk 00:38:08]} {[%emt 00:01:44]} Bd4
{[%clk 00:17:43]} {[%emt 00:01:23]} 24. Qd2 {[%clk 00:36:37]} {[%emt 00:02:02]}
f5 {[%clk 00:15:45]} {[%emt 00:02:28]} 25. Bc6 {[%clk 00:33:26]} {[%emt
00:03:41]} Qe7 {[%clk 00:08:33]} {[%emt 00:07:43]} 26. Qxd4+ {[%clk 00:33:13]}
{[%emt 00:00:43]} e5 {[%clk 00:08:05]} {[%emt 00:00:57]} 27. Qe3 {[%clk
00:31:29]} {[%emt 00:02:13]} Qf6 {[%clk 00:07:39]} {[%emt 00:00:57]} 28. Ba4
{[%clk 00:29:13]} {[%emt 00:02:46]} bxa5 {[%clk 00:07:30]} {[%emt 00:00:39]} 29.
Qxa7 {[%clk 00:28:19]} {[%emt 00:01:24]} Ne6 {[%clk 00:06:26]} {[%emt
00:01:33]} 30. Bd7 {[%clk 00:27:56]} {[%emt 00:00:53]} Rc7 {[%clk 00:02:59]}
{[%emt 00:03:58]} 31. Qb6 {[%clk 00:24:49]} {[%emt 00:03:29]} e4 {[%clk
00:01:00]} {[%emt 00:02:37]} 32. Qxe6 {[%clk 00:23:16]} {[%emt 00:02:02]} exf3
{[%clk 00:00:36]} {[%emt 00:00:54]} 33. Rg8+ {[%clk 00:22:30]} {[%emt
00:01:16]} Kh7 {[%clk 00:00:46]} {[%emt 00:00:21]} 34. Rxf8 {[%clk 00:22:25]}
{[%emt 00:00:35]} Qxf8 {[%clk 00:00:49]} {[%emt 00:00:27]} 35. Qxf5+ {[%clk
00:22:33]} {[%emt 00:00:23]} Qxf5 {[%clk 00:00:54]} {[%emt 00:00:25]} 36. Bxf5+
{[%clk 00:23:00]} {[%emt 00:00:03]} Kg7 {[%clk 00:01:05]} {[%emt 00:00:19]} 37.
b3 {[%clk 00:22:34]} {[%emt 00:00:56]} Rb7 {[%clk 00:01:10]} {[%emt 00:00:25]}
38. Rb1 {[%clk 00:21:16]} {[%emt 00:01:48]} Re7 {[%clk 00:01:09]} {[%emt
00:00:30]} 39. Bg4 {[%clk 00:20:57]} {[%emt 00:00:48]} Rf7 {[%clk 00:01:28]}
{[%emt 00:00:12]} 40. c5 {[%clk 00:21:09]} {[%emt 00:00:18]} Rc7 {[%clk
00:00:51]} {[%emt 00:01:08]} 41. Rc1 {[%clk 00:21:03]} {[%emt 00:00:35]} Rb7
{[%clk 00:00:37]} {[%emt 00:00:44]} 42. c6 {[%emt 00:01:20]} 1-0